bitfinex/quotes_SOLUSD_20250528
["timestamp","ask_amount","ask_price","bid_price","bid_amount"]
[1748445385723,10.0,169.16,169.08,7.41092287]
[1748445386398,10.0,169.15,169.08,7.41092287]
[1748445386728,10.0,169.12,169.08,7.41092287]
[1748445386949,10.0,169.11,169.08,7.41092287]
[1748445387106,10.0,169.12,169.08,7.41092287]
[1748445387432,15.9126116,169.13,169.08,7.41092287]
[1748445387635,10.0,169.12,169.08,7.41092287]
[1748445388438,15.91230335,169.14,169.08,7.41092287]
[1748445388749,29.55013914,169.21,169.08,7.41092287]
[1748445388750,10.0,169.16,169.08,7.41092287]
[1748445389045,10.0,169.16,169.08,23.86521709]
[1748445389235,10.0,169.18,169.09,56.92964886]
[1748445389416,10.0,169.21,169.09,56.92964886]
[1748445389616,10.0,169.19,169.09,56.92964886]
[1748445389945,10.0,169.21,169.09,272.52964886]
[1748445390248,10.0,169.19,169.09,272.52964886]
[1748445390442,10.0,169.21,169.09,272.52964886]
[1748445390608,10.0,169.21,169.11,18.64964886]
[1748445390609,15.90984225,169.21,169.11,18.64964886]
[1748445390923,5.90984225,169.21,169.11,18.64964886]
[1748445391122,15.9091849,169.23,169.13,18.64964886]
[1748445391338,5.9091849,169.23,169.15,18.64964886]
[1748445391552,10.0,169.24,169.17,18.64964886]
[1748445391713,5.90815055,169.26,169.17,234.24964886]
[1748445392027,2.6994,169.27,169.17,234.24964886]
[1748445392028,5.90776806,169.27,169.17,234.24964886]
[1748445392727,5.90744623,169.28,169.19,18.64964886]
[1748445392944,15.9070902,169.29,169.21,18.64964886]
[1748445393261,15.90703196,169.29,169.21,18.64964886]
[1748445393533,10.0,169.28,169.21,18.64964886]
[1748445393718,5.90703196,169.29,169.21,18.64964886]
[1748445393719,10.0,169.27,169.21,18.64964886]
[1748445394321,10.0,169.25,169.21,18.64964886]
[1748445394936,10.0,169.25,169.21,234.24964886]
[1748445394937,15.90843276,169.25,169.21,234.24964886]
[1748445396330,15.90843276,169.25,169.2,79.84]
[1748445397445,15.90843276,169.25,169.21,18.64964886]
[1748445398040,15.90843276,169.25,169.21,87.94964886]
[1748445398735,10.58,169.3,169.21,87.94964886]
[1748445398736,10.0,169.26,169.21,87.94964886]
[1748445398936,15.90824656,169.26,169.21,87.94964886]
[1748445399141,5.90824656,169.26,169.21,87.94964886]
[1748445399454,15.90824656,169.26,169.21,87.94964886]
[1748445400011,5.9010976,169.46,169.24,27.73]
[1748445400211,5.9010976,169.46,169.25,37.96486201]
[1748445400439,5.9010976,169.46,169.27,18.64964886]
[1748445400717,5.9010976,169.46,169.29,18.64964886]
[1748445401015,20.65384161,169.46,169.29,24.55658108]
[1748445401420,20.65384161,169.46,169.29,18.64964886]
[1748445401648,50.15932963,169.46,169.29,18.64964886]
[1748445404950,50.15932963,169.46,169.29,164.94964886]
[1748445405253,50.15932963,169.46,169.29,234.24964886]
[1748445405628,50.15932963,169.46,169.31,18.64964886]
[1748445405853,50.15932963,169.46,169.33,18.64964886]
[1748445407056,50.15932963,169.46,169.3,9.53775325]
[1748445407057,79.66481765,169.46,169.3,9.53775325]
[1748445407271,10.0,169.45,169.31,18.64964886]
[1748445407424,10.0,169.45,169.29,18.64964886]
[1748445407747,28.64964886,169.45,169.29,18.64964886]
[1748445408045,18.64964886,169.45,169.29,18.64964886]
[1748445408235,28.64964886,169.45,169.29,18.64964886]
[1748445408421,107.39481765,169.46,169.29,18.64964886]
[1748445408620,10.0,169.45,169.29,18.64964886]
[1748445409244,50.16525022,169.44,169.29,18.64964886]
[1748445410029,79.67422094,169.44,169.29,18.64964886]
[1748445411729,6.4207,169.42,169.28,10.56]
[1748445411940,10.56,169.41,169.28,10.56]
[1748445412433,6.4207,169.42,169.29,18.64964886]
[1748445412837,6.4207,169.42,169.29,28.18740211]
[1748445413171,2.6316,169.43,169.31,18.64964886]
[1748445413336,20.65871797,169.42,169.31,18.64964886]
[1748445414252,20.65871797,169.42,169.31,164.94964886]
[1748445414550,20.65871797,169.42,169.31,87.94964886]
[1748445414747,20.65871797,169.42,169.33,18.64964886]
[1748445414953,20.65871797,169.42,169.34,38.46]
[1748445415329,20.65871797,169.42,169.35,18.64964886]
[1748445416430,20.65871797,169.42,169.3,9.53775325]
[1748445416431,50.17117222,169.42,169.31,18.64964886]
[1748445417044,50.17117222,169.42,169.3,38.44]
[1748445417045,50.17117222,169.42,169.29,57.06964886]
[1748445417964,50.17117222,169.42,169.29,18.64964886]
[1748445418144,50.17117222,169.42,169.29,272.66964886]
[1748445421156,50.17117222,169.42,169.29,277.40015667]
[1748445421365,20.65871797,169.42,169.31,18.64964886]
[1748445421558,20.65871797,169.42,169.31,234.24964886]
[1748445422234,50.17117222,169.42,169.31,234.24964886]
[1748445422431,50.17117222,169.42,169.31,215.6]
[1748445422658,88.53117222,169.42,169.31,215.6]
[1748445423784,50.17117222,169.42,169.31,215.6]
[1748445424138,31.42664886,169.39,169.24,69.3]
[1748445424441,10.0,169.36,169.23,18.64964886]
[1748445424641,10.0,169.36,169.21,18.64964886]
[1748445424857,18.64964886,169.37,169.21,18.64964886]
[1748445425765,50.1889466,169.36,169.21,18.64964886]
[1748445426442,6.2113,169.34,169.21,18.64964886]
[1748445427768,50.19783852,169.33,169.21,18.64964886]
[1748445427940,10.74,169.32,169.21,18.64964886]
[1748445428571,2.7657,169.31,169.21,18.64964886]
[1748445429370,2.7657,169.31,169.21,234.24964886]
[1748445429754,20.67336089,169.3,169.21,234.24964886]
[1748445430365,5.90667454,169.3,169.21,234.24964886]
[1748445430749,5.90597684,169.32,169.23,18.64964886]
[1748445431863,14.7635277,169.34,169.23,18.64964886]
[1748445432055,14.7635277,169.34,169.23,234.24964886]
[1748445432477,14.7635277,169.34,169.23,240.15875067]
[1748445432857,14.7635277,169.34,169.23,234.24964886]
[1748445433765,14.7635277,169.34,169.23,240.15873294]
[1748445434251,5.90493061,169.35,169.23,240.15873294]
[1748445435064,20.66725715,169.35,169.23,234.24964886]
[1748445435377,20.66725715,169.35,169.23,240.15862801]
[1748445435752,20.66725715,169.35,169.23,221.50897915]
[1748445435972,20.66725715,169.35,169.25,6.5132]
[1748445436171,10.74,169.38,169.36,48.63274285]
[1748445436353,10.74,169.38,169.36,33.53274285]
[1748445437169,5.90423333,169.37,169.36,33.53274285]
[1748445438476,5.90353621,169.39,169.36,179.83274285]
[1748445439257,20.66237675,169.39,169.36,179.83274285]
[1748445439661,5.90353621,169.39,169.36,179.83274285]
[1748445440274,14.75682915,169.42,169.36,179.83274285]
[1748445444093,14.75682915,169.42,169.37,18.64964886]
[1748445444295,14.75682915,169.42,169.37,198.48239171]
[1748445446071,5.90214247,169.43,169.37,198.48239171]
[1748445446467,20.65140428,169.48,169.37,198.48239171]
[1748445446781,20.65140428,169.48,169.37,209.22239171]
[1748445447700,5.90040122,169.48,169.37,215.12642652]
[1748445447869,5.90040122,169.48,169.39,18.64964886]
[1748445448070,5.90000763,169.5,169.41,18.64964886]
[1748445448267,5.90000763,169.5,169.41,198.48239171]
[1748445448666,14.74775939,169.52,169.41,198.48239171]
[1748445449282,5.898661,169.53,169.43,18.64964886]
[1748445449492,5.898661,169.53,169.45,18.64964886]
[1748445449797,10.72,169.59,169.45,198.48239171]
[1748445450297,14.74317391,169.57,169.45,198.48239171]
[1748445450874,14.74317391,169.57,169.45,236.58239171]
[1748445451080,14.74317391,169.57,169.45,198.48239171]
[1748445451389,14.74317391,169.57,169.45,236.58239171]
[1748445452201,14.74317391,169.57,169.45,198.48239171]
[1748445454204,14.74317391,169.57,169.45,52.18239171]
[1748445454411,14.74317391,169.57,169.45,198.48239171]
[1748445456084,63.36317391,169.57,169.45,198.48239171]
[1748445456805,63.36317391,169.57,169.45,33.53274285]
[1748445456806,18.64964886,169.55,169.45,33.53274285]
[1748445457109,18.64964886,169.55,169.43,33.53274285]
[1748445457283,50.13566119,169.54,169.43,33.53274285]
[1748445457590,48.1,169.53,169.4,33.53274285]
[1748445457783,18.64964886,169.5,169.34,281.55274285]
[1748445457991,6.4691,169.48,169.34,104.61506792]
[1748445458311,38.1,169.47,169.35,18.64964886]
[1748445458607,48.62,169.49,169.35,18.64964886]
[1748445459303,20.65140428,169.48,169.35,18.64964886]
[1748445460114,5.90040122,169.48,169.35,18.64964886]
[1748445460289,20.65140428,169.48,169.35,18.64964886]
[1748445461299,20.65140428,169.48,169.34,16.78]
[1748445461784,20.65140428,169.48,169.35,18.64964886]
[1748445462787,10.54,169.47,169.35,18.64964886]
[1748445463011,10.54,169.47,169.35,198.48239171]
[1748445463219,5.9010976,169.46,169.35,204.38714249]
[1748445463924,16.44080652,169.47,169.37,18.64964886]
[1748445464289,31.19268,169.47,169.37,18.64964886]
[1748445465007,69.29268,169.47,169.35,179.83274285]
[1748445465211,98.79642697,169.47,169.35,33.53274285]
[1748445468895,98.79642697,169.47,169.35,179.83274285]
[1748445469098,31.19268,169.47,169.36,18.64964886]
[1748445469306,31.19268,169.47,169.36,198.48239171]
[1748445470213,16.44080652,169.47,169.37,38.1]
[1748445470416,16.44080652,169.47,169.37,217.93274285]
[1748445470918,16.44080652,169.47,169.38,18.64964886]
[1748445471119,5.90080652,169.47,169.38,198.48239171]
[1748445471525,5.9000531,169.49,169.38,204.38610768]
[1748445471811,5.9000531,169.49,169.4,18.64964886]
[1748445472020,5.9000531,169.49,169.4,209.02239171]
[1748445473204,20.64963717,169.5,169.4,209.02239171]
[1748445474505,5.89970501,169.5,169.4,209.02239171]
[1748445474817,5.89970501,169.5,169.42,18.64964886]
[1748445475220,10.54,169.52,169.42,18.64964886]
[1748445475221,5.89935697,169.51,169.42,18.64964886]
[1748445475404,14.74926253,169.5,169.42,18.64964886]
[1748445476913,5.89935697,169.51,169.42,18.64964886]
[1748445477321,20.64774939,169.51,169.42,18.64964886]
[1748445479802,20.64774939,169.51,169.42,219.14964886]
[1748445481028,5.89935697,169.51,169.42,219.14964886]
[1748445481321,5.89935697,169.51,169.42,257.22964886]
[1748445481724,5.89935697,169.51,169.42,260.10426484]
[1748445482835,4.89935697,169.51,169.42,260.10426484]
[1748445483411,5.89831308,169.54,169.42,266.00673612]
[1748445483614,5.89831308,169.54,169.44,18.64964886]
[1748445483814,5.89726956,169.57,169.44,28.18740211]
[1748445484026,5.89726956,169.57,169.46,18.64964886]
[1748445484237,5.89726956,169.57,169.48,18.64964886]
[1748445484731,20.63975502,169.58,169.48,18.64964886]
[1748445485821,20.63975502,169.58,169.48,200.5]
[1748445486016,20.63975502,169.58,169.48,54.2]
[1748445486017,50.12436405,169.58,169.48,54.2]
[1748445486330,50.12436405,169.58,169.48,200.5]
[1748445486732,38.08,169.57,169.48,200.5]
[1748445486933,20.64166076,169.56,169.48,200.5]
[1748445489041,14.7440434,169.56,169.48,200.5]
[1748445489927,14.7440434,169.56,169.48,54.2]
[1748445495138,10.52,169.55,169.48,54.2]
[1748445495956,20.64409578,169.54,169.48,54.2]
[1748445496853,20.64409578,169.54,169.48,200.5]
[1748445499332,50.13566119,169.54,169.48,200.5]
[1748445499651,38.06,169.53,169.48,54.2]
[1748445500360,20.64653137,169.52,169.48,54.2]
[1748445500849,9.4352,169.51,169.48,54.2]
[1748445501053,9.4352,169.51,169.41,54.2]
[1748445501735,2.7987,169.51,169.42,18.64964886]
[1748445502050,2.7987,169.51,169.41,200.5]
[1748445502247,20.64896754,169.5,169.41,200.5]
[1748445502927,20.64896754,169.5,169.42,18.64964886]
[1748445503126,20.64896754,169.5,169.41,200.5]
[1748445503325,10.52,169.49,169.41,54.2]
[1748445503550,10.52,169.49,169.38,54.2]
[1748445503551,38.06,169.48,169.38,54.2]
[1748445504251,20.65262287,169.47,169.38,54.2]
[1748445504552,20.65262287,169.47,169.39,18.64964886]
[1748445505354,20.65262287,169.47,169.38,200.5]
[1748445506743,14.75187348,169.47,169.38,200.5]
[1748445507844,14.75187348,169.47,169.39,18.64964886]
[1748445508945,14.75187348,169.47,169.38,200.5]
[1748445509138,44.5802,169.46,169.38,54.2]
[1748445509532,2.8901,169.45,169.33,18.64964886]
[1748445510750,50.16525022,169.44,169.33,18.64964886]
[1748445510928,10.52,169.43,169.33,18.64964886]
[1748445512243,10.52,169.43,169.33,28.42710876]
[1748445512749,20.65871797,169.42,169.33,28.42710876]
[1748445514257,5.90249085,169.42,169.33,28.42710876]
[1748445515747,5.90249085,169.42,169.33,228.92710876]
[1748445516839,14.75311293,169.46,169.33,237.51080646]
[1748445519046,14.75311293,169.46,169.33,275.57080646]
[1748445521057,14.75311293,169.46,169.35,18.64964886]
[1748445521257,14.75311293,169.46,169.36,9.7774599]
[1748445521570,5.90074939,169.47,169.39,18.64964886]
[1748445521740,5.90074939,169.47,169.4,9.7774599]
[1748445522356,20.65262287,169.47,169.41,18.64964886]
[1748445522563,20.65262287,169.47,169.4,9.7774599]
[1748445522773,20.64896754,169.5,169.39,200.5]
[1748445523147,29.50374697,169.47,169.39,200.5]
[1748445525956,50.14749261,169.5,169.39,200.5]
[1748445526350,50.14749261,169.5,169.4,18.64964886]
[1748445527457,50.14749261,169.5,169.39,210.2774599]
[1748445527650,88.20749261,169.5,169.4,18.64964886]
[1748445530685,20.64896754,169.5,169.41,9.7774599]
[1748445530866,20.64896754,169.5,169.42,21.31074886]
[1748445531066,20.64896754,169.5,169.43,9.7774599]
[1748445531247,20.64896754,169.5,169.43,210.2774599]
[1748445531885,5.89970501,169.5,169.44,18.64964886]
[1748445532074,10.52,169.52,169.44,18.64964886]
[1748445532075,5.89946604,169.51,169.44,228.92710876]
[1748445532248,20.64785846,169.51,169.44,228.92710876]
[1748445532754,5.89946604,169.51,169.44,228.92710876]
[1748445533176,5.89946604,169.51,169.44,219.14964886]
[1748445533355,20.64785846,169.51,169.44,219.14964886]
[1748445533556,20.64785846,169.51,169.44,72.84964886]
[1748445534652,5.89946604,169.51,169.44,18.64964886]
[1748445534886,5.89946604,169.51,169.46,18.64964886]
[1748445536781,50.12978768,169.56,169.46,18.64964886]
[1748445536959,50.12978768,169.56,169.46,219.14964886]
[1748445537851,50.12978768,169.56,169.45,6.0289]
[1748445538056,50.12978768,169.56,169.46,18.64964886]
[1748445539265,20.64166076,169.56,169.46,18.64964886]
[1748445540165,50.12974757,169.56,169.46,18.64964886]
[1748445541375,20.64166076,169.56,169.46,18.64964886]
[1748445541580,20.64166076,169.56,169.46,219.14964886]
[1748445542269,50.12974757,169.56,169.46,219.14964886]
[1748445542867,85.72843438,169.56,169.46,200.5]
[1748445543172,38.02,169.55,169.46,200.5]
[1748445544672,20.64409578,169.54,169.47,18.64964886]
[1748445546174,50.13566119,169.54,169.46,200.5]
[1748445548322,50.13566119,169.54,169.46,54.2]
[1748445548323,79.6272266,169.54,169.46,54.2]
[1748445548599,2.6409,169.53,169.46,54.2]
[1748445548896,18.64964886,169.51,169.41,54.2]
[1748445549195,48.5,169.5,169.41,54.2]
[1748445549710,10.48,169.5,169.42,18.64964886]
[1748445549871,50.1415762,169.52,169.42,18.64964886]
[1748445550070,31.12653137,169.52,169.42,219.14964886]
[1748445550290,31.12653137,169.52,169.42,228.92710876]
[1748445550487,31.12653137,169.52,169.42,219.14964886]
[1748445550689,31.12653137,169.52,169.46,18.64964886]
[1748445550895,16.37900896,169.52,169.46,219.14964886]
[1748445551101,5.89900896,169.52,169.46,219.14964886]
[1748445551289,5.89900896,169.52,169.47,2.6915]
[1748445551676,5.89831308,169.54,169.48,18.64964886]
[1748445551874,5.89831308,169.54,169.48,257.16964886]
[1748445552701,5.89761736,169.56,169.48,257.16964886]
[1748445554022,20.64166076,169.56,169.48,257.16964886]
[1748445555192,5.89761736,169.56,169.48,257.16964886]
[1748445555373,5.8969218,169.58,169.5,18.64964886]
[1748445555582,20.63922631,169.58,169.5,18.64964886]
[1748445555879,50.11496963,169.61,169.5,18.64964886]
[1748445559688,20.63557573,169.61,169.5,18.64964886]
[1748445560093,5.89587878,169.61,169.5,18.64964886]
[1748445560387,5.89587878,169.61,169.5,219.14964886]
[1748445561318,14.73925059,169.62,169.5,219.14964886]
[1748445561680,14.73925059,169.62,169.5,228.92710876]
[1748445562607,14.73925059,169.62,169.52,18.64964886]
[1748445562788,14.73925059,169.62,169.51,38.0]
[1748445562789,14.73925059,169.62,169.51,18.64964886]
[1748445563209,14.73925059,169.62,169.51,56.64964886]
[1748445563390,14.73925059,169.62,169.51,257.14964886]
[1748445564204,14.73925059,169.62,169.51,266.92710876]
[1748445565105,5.89483612,169.64,169.52,2.7656]
[1748445565304,5.89483612,169.64,169.54,18.64964886]
[1748445565487,5.89483612,169.64,169.54,219.14964886]
[1748445565689,20.63192642,169.64,169.54,219.14964886]
[1748445565890,5.89483612,169.64,169.56,18.64964886]
[1748445566088,5.89483612,169.64,169.58,18.64964886]
[1748445566299,5.89483612,169.64,169.58,219.14964886]
[1748445567001,5.89483612,169.64,169.58,223.95291468]
[1748445567403,50.08886602,169.7,169.58,223.95291468]
[1748445567588,50.08886602,169.7,169.58,23.45291468]
[1748445568393,2.7016,169.69,169.58,18.64964886]
[1748445569215,50.09429512,169.68,169.58,18.64964886]
[1748445570601,20.62706269,169.68,169.58,18.64964886]
[1748445571119,14.73361621,169.68,169.6,18.64964886]
[1748445571420,14.73361621,169.68,169.6,219.14964886]
[1748445573520,14.73361621,169.68,169.6,257.12964886]
[1748445575808,14.73361621,169.68,169.6,260.0660297]
[1748445576317,14.73361621,169.68,169.62,18.64964886]
[1748445576514,5.89275191,169.7,169.68,39.46638379]
[1748445576724,5.89275191,169.7,169.68,28.66638379]
[1748445576933,2.7948,169.69,169.62,28.66638379]
[1748445577230,2.7948,169.69,169.6,28.66638379]
[1748445577815,50.09429512,169.68,169.6,28.66638379]
[1748445578017,60.57429512,169.68,169.6,28.66638379]
[1748445580425,31.10706269,169.68,169.61,18.64964886]
[1748445580605,5.89344648,169.68,169.61,18.64964886]
[1748445581420,35.35234503,169.72,169.61,18.64964886]
[1748445581601,50.08248879,169.72,169.61,18.64964886]
[1748445582932,20.62220126,169.72,169.62,9.2386]
[1748445583232,50.08248879,169.72,169.63,18.64964886]
[1748445583434,50.08248879,169.72,169.63,193.61603265]
[1748445586220,20.62220126,169.72,169.63,193.61603265]
[1748445586399,20.62220126,169.72,169.63,231.57603265]
[1748445586606,50.08248879,169.72,169.63,231.57603265]
[1748445586807,50.08248879,169.72,169.63,174.96638379]
[1748445587221,2.7723,169.71,169.63,28.66638379]
[1748445587431,20.62463169,169.7,169.63,28.66638379]
[1748445587634,50.08839126,169.7,169.63,28.66638379]
[1748445596651,18.64964886,169.69,169.63,28.66638379]
[1748445597154,18.64964886,169.69,169.58,146.3]
[1748445597155,18.64964886,169.66,169.58,28.66638379]
[1748445597319,48.4,169.65,169.58,28.66638379]
[1748445597718,20.62706269,169.68,169.6,6.1829]
[1748445597910,20.62706269,169.68,169.6,8.8944]
[1748445598319,50.09429512,169.68,169.6,6.1829]
[1748445598550,60.55429512,169.68,169.58,18.64964886]
[1748445599046,63.22089512,169.68,169.57,40.87142696]
[1748445600326,33.75366269,169.68,169.58,18.64964886]
[1748445601018,31.08706269,169.68,169.58,18.64964886]
[1748445601338,16.35344648,169.68,169.58,18.64964886]
[1748445601520,5.89313243,169.69,169.58,34.32394624]
[1748445601715,5.89240469,169.71,169.6,18.64964886]
[1748445601929,5.89240469,169.71,169.62,18.64964886]
[1748445602140,5.89217179,169.72,169.64,18.64964886]
[1748445602445,5.89217179,169.72,169.65,6.0671]
[1748445602824,5.89217179,169.72,169.65,181.03348379]
[1748445603923,5.89217179,169.72,169.66,18.64964886]
[1748445604828,5.89217179,169.72,169.66,193.61603265]
[1748445605025,20.618787,169.75,169.66,193.61603265]
[1748445605626,20.618787,169.75,169.66,174.96638379]
[1748445605627,49.573868,169.75,169.66,174.96638379]
[1748445606055,20.118787,169.75,169.67,18.64964886]
[1748445608946,20.118787,169.75,169.66,174.96638379]
[1748445609744,49.573868,169.75,169.66,174.96638379]
[1748445610048,116.968949,169.75,169.66,174.96638379]
[1748445610939,116.948949,169.75,169.66,174.96638379]
[1748445611858,18.64964886,169.74,169.66,174.96638379]
[1748445612030,9.1097,169.73,169.61,28.66638379]
[1748445612236,10.44,169.72,169.61,174.96638379]
[1748445612441,37.92,169.71,169.61,174.96638379]
[1748445613049,37.92,169.71,169.61,28.66638379]
[1748445613230,79.55215083,169.7,169.61,28.66638379]
[1748445614147,37.92,169.69,169.61,28.66638379]
[1748445614666,2.7371,169.68,169.61,28.66638379]
[1748445615265,20.62827841,169.67,169.61,28.66638379]
[1748445615930,20.62827841,169.67,169.61,174.96638379]
[1748445616651,50.09724758,169.67,169.61,28.66638379]
[1748445617155,88.01724758,169.67,169.61,28.66638379]
[1748445617650,58.54827841,169.67,169.61,28.66638379]
[1748445617832,5.89379383,169.67,169.61,174.96638379]
[1748445618236,20.62827841,169.67,169.61,174.96638379]
[1748445618750,5.89379383,169.67,169.61,174.96638379]
[1748445619052,5.89379383,169.67,169.62,18.64964886]
[1748445619442,5.89309918,169.69,169.62,18.64964886]
[1748445619747,20.62584713,169.69,169.62,18.64964886]
[1748445620129,20.62584713,169.69,169.62,174.96638379]
[1748445620333,58.54584713,169.69,169.62,28.66638379]
[1748445621048,88.01134303,169.69,169.62,28.66638379]
[1748445622737,50.09134303,169.69,169.62,28.66638379]
[1748445622938,37.92,169.68,169.62,28.66638379]
[1748445623560,50.09724758,169.67,169.62,28.66638379]
[1748445625446,20.62827841,169.67,169.62,28.66638379]
[1748445628559,14.73448458,169.67,169.62,28.66638379]
[1748445630059,5.89309918,169.69,169.62,28.66638379]
[1748445630060,5.89309918,169.69,169.62,174.96638379]
[1748445630363,5.89309918,169.69,169.63,18.64964886]
[1748445630660,20.62584713,169.69,169.63,18.64964886]
[1748445630878,20.62584713,169.69,169.62,174.96638379]
[1748445631350,20.62584713,169.69,169.63,18.64964886]
[1748445632160,5.89309918,169.69,169.63,18.64964886]
[1748445632361,5.89309918,169.69,169.63,193.61603265]
[1748445632562,5.89309918,169.69,169.63,196.44013265]
[1748445632863,14.73062442,169.72,169.63,196.44013265]
[1748445633241,5.89171036,169.73,169.63,206.21759255]
[1748445633457,5.89171036,169.73,169.65,18.64964886]
[1748445633660,5.89171036,169.73,169.67,18.64964886]
[1748445633855,5.89171036,169.73,169.67,193.61603265]
[1748445634341,5.89066918,169.76,169.74,28.66638379]
[1748445634872,20.61549029,169.78,169.74,28.66638379]
[1748445635044,20.61549029,169.78,169.74,174.96638379]
[1748445635241,5.88997526,169.78,169.74,174.96638379]
[1748445635438,5.88997526,169.78,169.75,18.64964886]
[1748445635653,5.8892815,169.8,169.75,52.01141367]
[1748445635871,5.88858791,169.82,169.75,198.31141367]
[1748445636453,5.88720122,169.86,169.76,6.3735]
[1748445636662,20.60520428,169.86,169.77,18.64964886]
[1748445637360,20.60520428,169.86,169.77,193.61603265]
[1748445638633,29.43340363,169.88,169.77,193.61603265]
[1748445638838,58.49914071,169.91,169.77,193.61603265]
[1748445639167,50.02648459,169.91,169.77,193.61603265]
[1748445639872,20.59914071,169.91,169.77,193.61603265]
[1748445640069,20.59914071,169.91,169.79,18.64964886]
[1748445640239,20.59914071,169.91,169.81,18.64964886]
[1748445640437,20.59914071,169.91,169.81,231.51603265]
[1748445641274,50.02648459,169.91,169.81,231.51603265]
[1748445641542,50.02648459,169.91,169.81,193.61603265]
[1748445648455,20.59914071,169.91,169.81,193.61603265]
[1748445648653,20.59914071,169.91,169.82,6.2056]
[1748445648856,20.59914071,169.91,169.84,18.64964886]
[1748445649263,5.88546877,169.91,169.84,18.64964886]
[1748445649848,14.71168919,169.94,169.84,18.64964886]
[1748445650174,14.71168919,169.94,169.84,28.66638379]
[1748445650468,52.57168919,169.94,169.84,28.66638379]
[1748445650968,14.71168919,169.94,169.85,18.64964886]
[1748445651158,14.71168919,169.94,169.83,18.64964886]
[1748445651466,14.71168919,169.94,169.84,2.7677]
[1748445652071,14.71168919,169.94,169.85,18.64964886]
[1748445653264,14.71168919,169.94,169.85,193.61603265]
[1748445653462,14.71168919,169.94,169.87,18.64964886]
[1748445653774,5.88408355,169.95,169.87,56.48964886]
[1748445653963,29.41235638,170.0,169.87,56.48964886]
[1748445654152,29.41235638,170.0,169.87,231.45603265]
[1748445655564,29.41235638,170.0,169.87,193.61603265]
[1748445655963,50.00059167,170.0,169.87,193.61603265]
[1748445657653,79.41294805,170.0,169.87,193.61603265]
[1748445658377,79.41294805,170.0,169.87,47.31603265]
[1748445658674,79.41294805,170.0,169.87,193.61603265]
[1748445660152,73.53059511,170.0,169.87,193.61603265]
[1748445660370,18.64964886,169.98,169.86,28.66638379]
[1748445660573,40.6042,169.97,169.86,28.66638379]
[1748445660773,18.64964886,169.95,169.8,223.20638379]
[1748445661173,36.34964886,169.95,169.8,185.38638379]
[1748445661369,10.42,169.96,169.75,49.56336481]
[1748445661370,18.64964886,169.9,169.75,49.56336481]
[1748445661674,10.42,169.89,169.75,58.71698102]
[1748445662254,20.60277842,169.88,169.76,18.64964886]
[1748445664656,5.88581518,169.9,169.78,18.64964886]
[1748445664854,5.88581518,169.9,169.8,18.64964886]
[1748445665085,5.88581518,169.9,169.8,231.43603265]
[1748445665482,5.88581518,169.9,169.82,18.64964886]
[1748445665673,5.88477608,169.93,169.82,18.64964886]
[1748445665868,5.88477608,169.93,169.84,18.64964886]
[1748445666181,20.59671629,169.93,169.85,6.2644]
[1748445666869,20.59671629,169.93,169.84,18.64964886]
[1748445667866,14.71194021,169.93,169.84,18.64964886]
[1748445668434,14.68838021,169.93,169.84,18.64964886]
[1748445670266,14.68838021,169.93,169.84,174.96638379]
[1748445671692,14.68838021,169.93,169.85,18.64964886]
[1748445672074,14.68838021,169.93,169.84,174.96638379]
[1748445675810,6.1527,169.92,169.84,28.66638379]
[1748445676189,20.59914071,169.91,169.84,28.66638379]
[1748445676498,58.41914071,169.91,169.84,28.66638379]
[1748445676900,87.84648459,169.91,169.84,28.66638379]
[1748445678905,58.41914071,169.91,169.84,174.96638379]
[1748445679490,87.84648459,169.91,169.84,174.96638379]
[1748445681511,58.39914071,169.91,169.84,174.96638379]
[1748445682393,87.82648459,169.91,169.84,174.96638379]
[1748445683214,58.39914071,169.91,169.84,174.96638379]
[1748445684797,58.39914071,169.91,169.84,28.66638379]
[1748445687806,87.82648459,169.91,169.84,28.66638379]
[1748445690117,98.22648459,169.91,169.84,28.66638379]
[1748445698603,60.42648459,169.91,169.84,28.66638379]
[1748445698811,37.8,169.9,169.84,28.66638379]
[1748445699604,20.60156571,169.89,169.84,28.66638379]
[1748445704210,5.88616163,169.89,169.84,28.66638379]
[1748445704734,20.60156571,169.89,169.84,28.66638379]
[1748445705832,50.02354048,169.92,169.84,28.66638379]
[1748445709217,10.38,169.91,169.84,28.66638379]
[1748445710225,50.02942906,169.9,169.84,28.66638379]
[1748445713740,50.02942906,169.9,169.8,34.88778379]
[1748445716849,2.3775,169.89,169.8,28.66638379]
[1748445717031,20.60277842,169.88,169.8,28.66638379]
[1748445717348,58.38277842,169.88,169.8,28.66638379]
[1748445718535,87.81531903,169.88,169.8,28.66638379]
[1748445726847,20.60277842,169.88,169.8,28.66638379]
[1748445727641,50.03531903,169.88,169.8,28.66638379]
[1748445728737,50.03531903,169.88,169.78,28.66638379]
[1748445728738,18.64964886,169.87,169.78,28.66638379]